Workbook

Sheet Sheet1
A1: 霍山县衡山镇公开招考社区工作者笔试成绩
A2: 序号 | B2: 岗位代码 | C2: 考场号 | D2: 准考证号 | E2: 笔试成绩 | F2: 笔试合成成绩 | G2: 备注
A3: 1 | B3: 250101 | C3: 01 | D3: 2501010101 | E3: 88.20 | F3: =E3/1.2*0.5 -> 36.75
A4: 2 | B4: 250101 | C4: 01 | D4: 2501010102 | E4: 84.40 | F4: =E4/1.2*0.5 -> 35.17
A5: 3 | B5: 250101 | C5: 01 | D5: 2501010103 | E5: 88.30 | F5: 36.79
A6: 4 | B6: 250101 | C6: 01 | D6: 2501010104 | E6: 87.90 | F6: 36.63
A7: 5 | B7: 250101 | C7: 01 | D7: 2501010105 | E7: 78.80 | F7: 32.83
A8: 6 | B8: 250101 | C8: 01 | D8: 2501010106 | E8: 77.80 | F8: 32.42
A9: 7 | B9: 250101 | C9: 01 | D9: 2501010107 | E9: 87.80 | F9: 36.58
A10: 8 | B10: 250101 | C10: 01 | D10: 2501010108 | E10: 87.50 | F10: 36.46
A11: 9 | B11: 250101 | C11: 01 | D11: 2501010109 | E11: 74.10 | F11: 30.88
A12: 10 | B12: 250101 | C12: 01 | D12: 2501010110 | E12: 0.00 | G12: 缺考
A13: 11 | B13: 250101 | C13: 01 | D13: 2501010111 | E13: 0.00 | G13: 缺考
A14: 12 | B14: 250101 | C14: 01 | D14: 2501010112 | E14: 82.20 | F14: 34.25
A15: 13 | B15: 250101 | C15: 01 | D15: 2501010113 | E15: 91.30 | F15: 38.04 | G15: 入围面试
A16: 14 | B16: 250101 | C16: 01 | D16: 2501010114 | E16: 67.20 | F16: 28.00
A17: 15 | B17: 250101 | C17: 01 | D17: 2501010115 | E17: 82.90 | F17: 34.54
A18: 16 | B18: 250101 | C18: 01 | D18: 2501010116 | E18: 86.50 | F18: 36.04
A19: 17 | B19: 250101 | C19: 01 | D19: 2501010117 | E19: 72.30 | F19: 30.13
A20: 18 | B20: 250101 | C20: 01 | D20: 2501010118 | E20: 92.30 | F20: 38.46 | G20: 入围面试
A21: 19 | B21: 250101 | C21: 01 | D21: 2501010119 | E21: 74.50 | F21: 31.04
A22: 20 | B22: 250101 | C22: 01 | D22: 2501010120 | E22: 84.40 | F22: 35.17
A23: 21 | B23: 250101 | C23: 01 | D23: 2501010121 | E23: 92.60 | F23: 38.58 | G23: 入围面试
A24: 22 | B24: 250101 | C24: 01 | D24: 2501010122 | E24: 93.30 | F24: 38.88 | G24: 入围面试
A25: 23 | B25: 250101 | C25: 01 | D25: 2501010123 | E25: 89.10 | F25: 37.13
A26: 24 | B26: 250101 | C26: 01 | D26: 2501010124 | E26: 93.90 | F26: 39.13 | G26: 入围面试
A27: 25 | B27: 250101 | C27: 01 | D27: 2501010125 | E27: 0.00 | G27: 缺考
A28: 26 | B28: 250101 | C28: 01 | D28: 2501010126 | E28: 0.00 | G28: 缺考
A29: 27 | B29: 250101 | C29: 01 | D29: 2501010127 | E29: 90.00 | F29: 37.50
A30: 28 | B30: 250101 | C30: 01 | D30: 2501010128 | E30: 91.60 | F30: 38.17 | G30: 入围面试
A31: 29 | B31: 250101 | C31: 01 | D31: 2501010129 | E31: 77.60 | F31: 32.33
A32: 30 | B32: 250101 | C32: 01 | D32: 2501010130 | E32: 91.80 | F32: 38.25 | G32: 入围面试
A33: 31 | B33: 250101 | C33: 02 | D33: 2501010201 | E33: 88.40 | F33: 36.83
A34: 32 | B34: 250101 | C34: 02 | D34: 2501010202 | E34: 80.60 | F34: 33.58
A35: 33 | B35: 250101 | C35: 02 | D35: 2501010203 | E35: 88.80 | F35: 37.00
A36: 34 | B36: 250101 | C36: 02 | D36: 2501010204 | E36: 90.10 | F36: 37.54
A37: 35 | B37: 250101 | C37: 02 | D37: 2501010205 | E37: 85.20 | F37: 35.50
A38: 36 | B38: 250101 | C38: 02 | D38: 2501010206 | E38: 89.00 | F38: 37.08
A39: 37 | B39: 250101 | C39: 02 | D39: 2501010207 | E39: 77.50 | F39: 32.29
A40: 38 | B40: 250101 | C40: 02 | D40: 2501010208 | E40: 79.00 | F40: 32.92
A41: 39 | B41: 250101 | C41: 02 | D41: 2501010209 | E41: 81.50 | F41: 33.96
A42: 40 | B42: 250101 | C42: 02 | D42: 2501010210 | E42: 0.00 | G42: 缺考
A43: 41 | B43: 250101 | C43: 02 | D43: 2501010211 | E43: 80.10 | F43: 33.38
A44: 42 | B44: 250101 | C44: 02 | D44: 2501010212 | E44: 86.90 | F44: 36.21
A45: 43 | B45: 250101 | C45: 02 | D45: 2501010213 | E45: 94.20 | F45: 39.25 | G45: 入围面试
A46: 44 | B46: 250101 | C46: 02 | D46: 2501010214 | E46: 0.00 | G46: 缺考
A47: 45 | B47: 250101 | C47: 02 | D47: 2501010215 | E47: 0.00 | G47: 缺考
A48: 46 | B48: 250101 | C48: 02 | D48: 2501010216 | E48: 90.50 | F48: 37.71
A49: 47 | B49: 250101 | C49: 02 | D49: 2501010217 | E49: 85.60 | F49: 35.67
A50: 48 | B50: 250101 | C50: 02 | D50: 2501010218 | E50: 81.90 | F50: 34.13
A51: 49 | B51: 250101 | C51: 02 | D51: 2501010219 | E51: 82.00 | F51: 34.17
A52: 50 | B52: 250101 | C52: 02 | D52: 2501010220 | E52: 92.90 | F52: 38.71 | G52: 入围面试
A53: 51 | B53: 250101 | C53: 02 | D53: 2501010221 | E53: 80.30 | F53: 33.46
A54: 52 | B54: 250101 | C54: 02 | D54: 2501010222 | E54: 91.10 | F54: 37.96 | G54: 入围面试
A55: 53 | B55: 250101 | C55: 02 | D55: 2501010223 | E55: 86.50 | F55: 36.04
A56: 54 | B56: 250101 | C56: 02 | D56: 2501010224 | E56: 84.80 | F56: 35.33
A57: 55 | B57: 250101 | C57: 02 | D57: 2501010225 | E57: 0.00 | G57: 缺考
A58: 56 | B58: 250101 | C58: 02 | D58: 2501010226 | E58: 0.00 | G58: 缺考
A59: 57 | B59: 250101 | C59: 02 | D59: 2501010227 | E59: 0.00 | G59: 缺考
A60: 58 | B60: 250101 | C60: 02 | D60: 2501010228 | E60: 89.00 | F60: 37.08
A61: 59 | B61: 250101 | C61: 02 | D61: 2501010229 | E61: 89.80 | F61: 37.42
A62: 60 | B62: 250101 | C62: 02 | D62: 2501010230 | E62: 86.60 | F62: 36.08
A63: 61 | B63: 250101 | C63: 03 | D63: 2501010301 | E63: 75.70 | F63: 31.54
A64: 62 | B64: 250101 | C64: 03 | D64: 2501010302 | E64: 91.50 | F64: 38.13 | G64: 入围面试
A65: 63 | B65: 250101 | C65: 03 | D65: 2501010303 | E65: 62.50 | F65: 26.04
A66: 64 | B66: 250101 | C66: 03 | D66: 2501010304 | E66: 77.90 | F66: 32.46
A67: 65 | B67: 250101 | C67: 03 | D67: 2501010305 | E67: 89.30 | F67: 37.21
A68: 66 | B68: 250101 | C68: 03 | D68: 2501010306 | E68: 75.00 | F68: =E68/1.2*0.5 -> 31.25
A69: 67 | B69: 250101 | C69: 03 | D69: 2501010307 | E69: 94.10 | F69: 39.21 | G69: 入围面试
A70: 68 | B70: 250101 | C70: 03 | D70: 2501010308 | E70: 80.20 | F70: 33.42
A71: 69 | B71: 250101 | C71: 03 | D71: 2501010309 | E71: 84.70 | F71: 35.29
A72: 70 | B72: 250101 | C72: 03 | D72: 2501010310 | E72: 83.20 | F72: 34.67
A73: 71 | B73: 250101 | C73: 03 | D73: 2501010311 | E73: 82.20 | F73: 34.25
A74: 72 | B74: 250101 | C74: 03 | D74: 2501010312 | E74: 76.90 | F74: 32.04
A75: 73 | B75: 250101 | C75: 03 | D75: 2501010313 | E75: 79.10 | F75: 32.96
A76: 74 | B76: 250101 | C76: 03 | D76: 2501010314 | E76: 62.80 | F76: 26.17
A77: 75 | B77: 250101 | C77: 03 | D77: 2501010315 | E77: 80.80 | F77: 33.67
A78: 76 | B78: 250101 | C78: 03 | D78: 2501010316 | E78: 81.90 | F78: 34.13
A79: 77 | B79: 250101 | C79: 03 | D79: 2501010317 | E79: 79.20 | F79: 33.00
A80: 78 | B80: 250101 | C80: 03 | D80: 2501010318 | E80: 91.50 | F80: 38.13 | G80: 入围面试
A81: 79 | B81: 250101 | C81: 03 | D81: 2501010319 | E81: 85.30 | F81: 35.54
A82: 80 | B82: 250101 | C82: 03 | D82: 2501010320 | E82: 90.30 | F82: 37.63
A83: 81 | B83: 250101 | C83: 03 | D83: 2501010321 | E83: 79.00 | F83: 32.92
A84: 82 | B84: 250101 | C84: 03 | D84: 2501010322 | E84: 91.80 | F84: 38.25 | G84: 入围面试
A85: 83 | B85: 250101 | C85: 03 | D85: 2501010323 | E85: 84.30 | F85: 35.13
A86: 84 | B86: 250101 | C86: 03 | D86: 2501010324 | E86: 0.00 | G86: 缺考
A87: 85 | B87: 250101 | C87: 03 | D87: 2501010325 | E87: 77.60 | F87: 32.33
A88: 86 | B88: 250101 | C88: 03 | D88: 2501010326 | E88: 74.90 | F88: 31.21
A89: 87 | B89: 250101 | C89: 03 | D89: 2501010327 | E89: 85.40 | F89: 35.58
A90: 88 | B90: 250101 | C90: 03 | D90: 2501010328 | E90: 0.00 | G90: 缺考
A91: 89 | B91: 250101 | C91: 03 | D91: 2501010329 | E91: 83.90 | F91: 34.96
A92: 90 | B92: 250101 | C92: 03 | D92: 2501010330 | E92: 0.00 | G92: 缺考
A93: 91 | B93: 250101 | C93: 04 | D93: 2501010401 | E93: 78.70 | F93: 32.79
A94: 92 | B94: 250101 | C94: 04 | D94: 2501010402 | E94: 73.60 | F94: 30.67
A95: 93 | B95: 250101 | C95: 04 | D95: 2501010403 | E95: 78.10 | F95: 32.54
A96: 94 | B96: 250101 | C96: 04 | D96: 2501010404 | E96: 74.90 | F96: 31.21
A97: 95 | B97: 250101 | C97: 04 | D97: 2501010405 | E97: 85.60 | F97: 35.67
A98: 96 | B98: 250101 | C98: 04 | D98: 2501010406 | E98: 79.40 | F98: 33.08
A99: 97 | B99: 250101 | C99: 04 | D99: 2501010407 | E99: 81.20 | F99: 33.83
A100: 98 | B100: 250101 | C100: 04 | D100: 2501010408 | E100: 80.00 | F100: 33.33
A101: 99 | B101: 250101 | C101: 04 | D101: 2501010409 | E101: 90.60 | F101: 37.75
A102: 100 | B102: 250101 | C102: 04 | D102: 2501010410 | E102: 65.20 | F102: 27.17
A103: 101 | B103: 250101 | C103: 04 | D103: 2501010411 | E103: 89.80 | F103: 37.42
A104: 102 | B104: 250101 | C104: 04 | D104: 2501010412 | E104: 73.80 | F104: 30.75
A105: 103 | B105: 250101 | C105: 04 | D105: 2501010413 | E105: 76.70 | F105: 31.96
A106: 104 | B106: 250101 | C106: 04 | D106: 2501010414 | E106: 86.80 | F106: 36.17
A107: 105 | B107: 250101 | C107: 04 | D107: 2501010415 | E107: 86.50 | F107: 36.04
A108: 106 | B108: 250101 | C108: 04 | D108: 2501010416 | E108: 92.70 | F108: 38.63 | G108: 入围面试
A109: 107 | B109: 250101 | C109: 04 | D109: 2501010417 | E109: 0.00 | G109: 缺考
A110: 108 | B110: 250101 | C110: 04 | D110: 2501010418 | E110: 92.90 | F110: 38.71 | G110: 入围面试
A111: 109 | B111: 250101 | C111: 04 | D111: 2501010419 | E111: 88.00 | F111: 36.67
A112: 110 | B112: 250101 | C112: 04 | D112: 2501010420 | E112: 86.20 | F112: 35.92
A113: 111 | B113: 250101 | C113: 04 | D113: 2501010421 | E113: 80.90 | F113: 33.71
A114: 112 | B114: 250101 | C114: 04 | D114: 2501010422 | E114: 69.50 | F114: 28.96
A115: 113 | B115: 250101 | C115: 04 | D115: 2501010423 | E115: 77.10 | F115: 32.13
A116: 114 | B116: 250101 | C116: 04 | D116: 2501010424 | E116: 0.00 | G116: 缺考
A117: 115 | B117: 250101 | C117: 04 | D117: 2501010425 | E117: 88.30 | F117: 36.79
A118: 116 | B118: 250101 | C118: 04 | D118: 2501010426 | E118: 85.60 | F118: 35.67
A119: 117 | B119: 250101 | C119: 04 | D119: 2501010427 | E119: 78.80 | F119: 32.83
A120: 118 | B120: 250101 | C120: 04 | D120: 2501010428 | E120: 83.50 | F120: 34.79
A121: 119 | B121: 250101 | C121: 04 | D121: 2501010429 | E121: 0.00 | G121: 缺考
A122: 120 | B122: 250101 | C122: 04 | D122: 2501010430 | E122: 88.30 | F122: 36.79
A123: 121 | B123: 250101 | C123: 05 | D123: 2501010501 | E123: 90.80 | F123: 37.83
A124: 122 | B124: 250101 | C124: 05 | D124: 2501010502 | E124: 91.10 | F124: 37.96 | G124: 入围面试
A125: 123 | B125: 250101 | C125: 05 | D125: 2501010503 | E125: 76.80 | F125: 32.00
A126: 124 | B126: 250101 | C126: 05 | D126: 2501010504 | E126: 98.30 | F126: 40.96 | G126: 入围面试
A127: 125 | B127: 250101 | C127: 05 | D127: 2501010505 | E127: 79.20 | F127: 33.00
A128: 126 | B128: 250101 | C128: 05 | D128: 2501010506 | E128: 0.00 | G128: 缺考
A129: 127 | B129: 250101 | C129: 05 | D129: 2501010507 | E129: 0.00 | G129: 缺考
A130: 128 | B130: 250101 | C130: 05 | D130: 2501010508 | E130: 0.00 | G130: 缺考
A131: 129 | B131: 250101 | C131: 05 | D131: 2501010509 | E131: 86.10 | F131: 35.88
A132: 130 | B132: 250101 | C132: 05 | D132: 2501010510 | E132: 78.90 | F132: =E132/1.2*0.5 -> 32.88
A133: 131 | B133: 250101 | C133: 05 | D133: 2501010511 | E133: 80.50 | F133: 33.54
A134: 132 | B134: 250101 | C134: 05 | D134: 2501010512 | E134: 91.90 | F134: 38.29 | G134: 入围面试
A135: 133 | B135: 250101 | C135: 05 | D135: 2501010513 | E135: 80.30 | F135: 33.46
A136: 134 | B136: 250101 | C136: 05 | D136: 2501010514 | E136: 52.90 | F136: 22.04
A137: 135 | B137: 250101 | C137: 05 | D137: 2501010515 | E137: 82.90 | F137: 34.54
A138: 136 | B138: 250101 | C138: 05 | D138: 2501010516 | E138: 57.20 | F138: 23.83
A139: 137 | B139: 250101 | C139: 05 | D139: 2501010517 | E139: 72.20 | F139: 30.08
A140: 138 | B140: 250101 | C140: 05 | D140: 2501010518 | E140: 85.60 | F140: 35.67
A141: 139 | B141: 250101 | C141: 05 | D141: 2501010519 | E141: 64.60 | F141: 26.92
A142: 140 | B142: 250101 | C142: 05 | D142: 2501010520 | E142: 76.50 | F142: 31.88
A143: 141 | B143: 250101 | C143: 05 | D143: 2501010521 | E143: 89.60 | F143: 37.33
A144: 142 | B144: 250101 | C144: 05 | D144: 2501010522 | E144: 81.00 | F144: 33.75
A145: 143 | B145: 250101 | C145: 05 | D145: 2501010523 | E145: 69.80 | F145: 29.08
A146: 144 | B146: 250101 | C146: 05 | D146: 2501010524 | E146: 89.00 | F146: 37.08
A147: 145 | B147: 250101 | C147: 05 | D147: 2501010525 | E147: 65.00 | F147: 27.08
A148: 146 | B148: 250101 | C148: 05 | D148: 2501010526 | E148: 90.40 | F148: 37.67
A149: 147 | B149: 250101 | C149: 05 | D149: 2501010527 | E149: 0.00 | G149: 缺考
A150: 148 | B150: 250101 | C150: 05 | D150: 2501010528 | E150: 77.90 | F150: 32.46
A151: 149 | B151: 250101 | C151: 05 | D151: 2501010529 | E151: 91.40 | F151: 38.08 | G151: 入围面试
A152: 150 | B152: 250101 | C152: 05 | D152: 2501010530 | E152: 49.10 | F152: 20.46
A153: 151 | B153: 250101 | C153: 06 | D153: 2501010601 | E153: 0.00 | G153: 缺考
A154: 152 | B154: 250101 | C154: 06 | D154: 2501010602 | E154: 79.90 | F154: 33.29
A155: 153 | B155: 250101 | C155: 06 | D155: 2501010603 | E155: 86.10 | F155: 35.88
A156: 154 | B156: 250101 | C156: 06 | D156: 2501010604 | E156: 57.70 | F156: 24.04
A157: 155 | B157: 250101 | C157: 06 | D157: 2501010605 | E157: 0.00 | G157: 缺考
A158: 156 | B158: 250101 | C158: 06 | D158: 2501010606 | E158: 91.70 | F158: 38.21 | G158: 入围面试
A159: 157 | B159: 250101 | C159: 06 | D159: 2501010607 | E159: 85.00 | F159: 35.42
A160: 158 | B160: 250101 | C160: 06 | D160: 2501010608 | E160: 91.40 | F160: 38.08 | G160: 入围面试
A161: 159 | B161: 250101 | C161: 06 | D161: 2501010609 | E161: 94.00 | F161: 39.17 | G161: 入围面试
A162: 160 | B162: 250101 | C162: 06 | D162: 2501010610 | E162: 80.90 | F162: 33.71
A163: 161 | B163: 250101 | C163: 06 | D163: 2501010611 | E163: 87.70 | F163: 36.54
A164: 162 | B164: 250101 | C164: 06 | D164: 2501010612 | E164: 87.50 | F164: 36.46
A165: 163 | B165: 250101 | C165: 06 | D165: 2501010613 | E165: 65.60 | F165: 27.33
A166: 164 | B166: 250101 | C166: 06 | D166: 2501010614 | E166: 80.90 | F166: 33.71
A167: 165 | B167: 250101 | C167: 06 | D167: 2501010615 | E167: 82.60 | F167: 34.42
A168: 166 | B168: 250101 | C168: 06 | D168: 2501010616 | E168: 79.10 | F168: 32.96
A169: 167 | B169: 250101 | C169: 06 | D169: 2501010617 | E169: 83.40 | F169: 34.75
A170: 168 | B170: 250101 | C170: 06 | D170: 2501010618 | E170: 80.70 | F170: 33.63
A171: 169 | B171: 250101 | C171: 06 | D171: 2501010619 | E171: 95.20 | F171: 39.67 | G171: 入围面试
A172: 170 | B172: 250101 | C172: 06 | D172: 2501010620 | E172: 76.20 | F172: 31.75
A173: 171 | B173: 250101 | C173: 06 | D173: 2501010621 | E173: 84.00 | F173: 35.00
A174: 172 | B174: 250101 | C174: 06 | D174: 2501010622 | E174: 86.30 | F174: 35.96
A175: 173 | B175: 250101 | C175: 06 | D175: 2501010623 | E175: 81.90 | F175: 34.13
A176: 174 | B176: 250101 | C176: 06 | D176: 2501010624 | E176: 0.00 | G176: 缺考
A177: 175 | B177: 250101 | C177: 06 | D177: 2501010625 | E177: 85.40 | F177: 35.58
A178: 176 | B178: 250101 | C178: 06 | D178: 2501010626 | E178: 78.80 | F178: 32.83
A179: 177 | B179: 250101 | C179: 06 | D179: 2501010627 | E179: 76.30 | F179: 31.79
A180: 178 | B180: 250101 | C180: 06 | D180: 2501010628 | E180: 85.70 | F180: 35.71
A181: 179 | B181: 250101 | C181: 06 | D181: 2501010629 | E181: 79.50 | F181: 33.13
A182: 180 | B182: 250101 | C182: 06 | D182: 2501010630 | E182: 81.40 | F182: 33.92
A183: 181 | B183: 250101 | C183: 07 | D183: 2501010701 | E183: 79.20 | F183: 33.00
A184: 182 | B184: 250101 | C184: 07 | D184: 2501010702 | E184: 81.40 | F184: 33.92
A185: 183 | B185: 250101 | C185: 07 | D185: 2501010703 | E185: 0.00 | G185: 缺考
A186: 184 | B186: 250101 | C186: 07 | D186: 2501010704 | E186: 76.20 | F186: 31.75
A187: 185 | B187: 250101 | C187: 07 | D187: 2501010705 | E187: 76.30 | F187: 31.79
A188: 186 | B188: 250101 | C188: 07 | D188: 2501010706 | E188: 72.20 | F188: 30.08
A189: 187 | B189: 250101 | C189: 07 | D189: 2501010707 | E189: 0.00 | G189: 缺考
A190: 188 | B190: 250101 | C190: 07 | D190: 2501010708 | E190: 90.60 | F190: 37.75
A191: 189 | B191: 250101 | C191: 07 | D191: 2501010709 | E191: 80.30 | F191: 33.46
A192: 190 | B192: 250101 | C192: 07 | D192: 2501010710 | E192: 79.30 | F192: 33.04
A193: 191 | B193: 250101 | C193: 07 | D193: 2501010711 | E193: 0.00 | G193: 缺考
A194: 192 | B194: 250101 | C194: 07 | D194: 2501010712 | E194: 72.40 | F194: 30.17
A195: 193 | B195: 250101 | C195: 07 | D195: 2501010713 | E195: 0.00 | G195: 缺考
A196: 194 | B196: 250101 | C196: 07 | D196: 2501010714 | E196: 80.50 | F196: =E196/1.2*0.5 -> 33.54
A197: 195 | B197: 250101 | C197: 07 | D197: 2501010715 | E197: 0.00 | G197: 缺考
A198: 196 | B198: 250101 | C198: 07 | D198: 2501010716 | E198: 0.00 | G198: 缺考
A199: 197 | B199: 250101 | C199: 07 | D199: 2501010717 | E199: 78.80 | F199: 32.83
A200: 198 | B200: 250101 | C200: 07 | D200: 2501010718 | E200: 78.10 | F200: 32.54
... 596 more rows
